bitfinex/quotes_SOLUSD_20241117
["timestamp","ask_amount","ask_price","bid_price","bid_amount"]
[1731858074763,18.86850196,234.51,234.43,20.0]
[1731858075851,24.027864,234.52,234.44,18.86850196]
[1731858076053,0.25098,234.54,234.46,18.86850196]
[1731858076248,18.86850196,234.55,234.46,18.86850196]
[1731858076442,18.86850196,234.55,234.47,20.0]
[1731858080065,18.86850196,234.57,234.48,18.86850196]
[1731858080259,24.027864,234.56,234.48,18.86850196]
[1731858080763,18.86850196,234.55,234.48,18.86850196]
[1731858084073,18.86850196,234.51,234.47,20.0]
[1731858084363,11.78979528,234.51,234.47,20.0]
[1731858084560,11.78979528,234.51,234.43,11.78979528]
[1731858086173,11.78979528,234.49,234.41,11.78979528]
[1731858086959,24.027864,234.48,234.39,28.06839528]
[1731858087164,11.78979528,234.47,234.39,28.06839528]
[1731858087363,11.78979528,234.47,234.4,20.0]
[1731858088667,24.027864,234.46,234.37,11.78979528]
[1731858089865,24.027864,234.46,234.38,20.0]
[1731858090065,24.027864,234.46,234.38,17.882]
[1731858091251,0.09367462,234.45,234.38,17.882]
[1731858091452,23.776884,234.47,234.41,11.78979528]
[1731858091669,23.776884,234.47,234.43,11.78979528]
[1731858091867,23.776884,234.47,234.41,11.78979528]
[1731858092369,0.09367462,234.46,234.39,11.78979528]
[1731858092562,0.34465462,234.46,234.39,11.78979528]
[1731858094776,0.34465462,234.44,234.39,11.78979528]
[1731858101568,6.0692,234.48,234.41,11.78979528]
[1731858101778,6.0692,234.48,234.43,11.78979528]
[1731858102186,0.09367462,234.47,234.43,11.78979528]
[1731858102982,0.09367462,234.47,234.36,11.78979528]
[1731858102983,24.12153862,234.47,234.41,11.78979528]
[1731858107287,26.9757,234.59,234.45,11.78979528]
[1731858107485,26.9757,234.59,234.5,11.78979528]
[1731858107871,26.9757,234.59,234.37,5.93668488]
[1731858107872,0.09367462,234.55,234.42,20.0]
[1731858108067,0.09367462,234.55,234.47,11.78979528]
[1731858108889,24.12153862,234.53,234.39,13.10368127]
[1731858109077,24.12153862,234.51,234.44,11.78979528]
[1731858109776,0.25098,234.46,234.41,11.78979528]
[1731858110275,0.25098,234.46,234.39,11.78979528]
[1731858114794,0.12549,234.44,234.39,11.78979528]
[1731858115087,0.25098,234.42,234.37,11.78979528]
[1731858117495,22.7603,234.49,234.41,11.78979528]
[1731858117790,0.09367462,234.48,234.44,11.78979528]
[1731858118194,27.0249,234.49,234.36,24.89347655]
[1731858118375,0.09367462,234.48,234.43,11.78979528]
[1731858118689,0.21916462,234.48,234.43,11.78979528]
[1731858118994,24.12153862,234.48,234.43,11.78979528]
[1731858122292,24.12153862,234.48,234.43,7.5456731]
[1731858126498,24.12153862,234.48,234.41,7.5456731]
[1731858128791,31.66721172,234.48,234.41,7.5456731]
[1731858130999,24.12153862,234.48,234.41,7.5456731]
[1731858133406,24.12153862,234.48,234.38,20.0]
[1731858133583,24.12153862,234.48,234.41,7.5456731]
[1731858134589,24.12153862,234.48,234.38,20.0]
[1731858134590,24.12153862,234.48,234.38,33.10368127]
[1731858134903,24.12153862,234.48,234.41,7.5456731]
[1731858135209,24.12153862,234.48,234.44,7.5456731]
[1731858135386,6.4999,234.49,234.46,7.5456731]
[1731858135589,0.09367462,234.48,234.46,7.5456731]
[1731858136399,20.1456,234.54,234.46,7.5456731]
[1731858136400,22.1186,234.54,234.46,7.5456731]
[1731858136710,22.1186,234.54,234.5,7.5456731]
[1731858137703,24.12153862,234.53,234.46,7.5456731]
[1731858141009,0.09367462,234.51,234.42,20.0]
[1731858141312,24.12153862,234.51,234.44,7.5456731]
[1731858142008,24.12153862,234.51,234.42,20.0]
[1731858142194,24.12153862,234.51,234.44,20.0]
[1731858142512,24.12153862,234.49,234.38,39.31104381]
[1731858142715,24.12153862,234.49,234.41,7.5456731]
[1731858144204,28.38603862,234.49,234.41,7.5456731]
[1731858144411,24.12153862,234.49,234.41,7.5456731]
[1731858144888,7.5456731,234.48,234.39,27.5456731]
[1731858145088,0.12549,234.46,234.41,7.5456731]
[1731858145413,0.09367462,234.45,234.43,7.5456731]
[1731858146108,11.8089731,234.56,234.43,7.5456731]
[1731858146298,0.09367462,234.53,234.47,7.5456731]
[1731858147393,0.09367462,234.49,234.45,7.5456731]
[1731858147592,0.21916462,234.49,234.45,7.5456731]
[1731858149899,0.21916462,234.49,234.43,7.5456731]
[1731858150100,0.21916462,234.49,234.44,20.0]
[1731858152715,0.21916462,234.5,234.44,20.0]
[1731858153114,22.4388,234.61,234.49,7.5456731]
[1731858153353,29.9844731,234.61,234.51,7.5456731]
[1731858154004,34.2468731,234.61,234.51,7.5456731]
[1731858154200,7.5456731,234.59,234.51,7.5456731]
[1731858154596,0.09367462,234.57,234.51,7.5456731]
[1731858155607,0.09367462,234.57,234.49,7.5456731]
[1731858155794,0.09367462,234.57,234.45,20.0]
[1731858156001,0.09367462,234.57,234.49,7.5456731]
[1731858156410,0.09367462,234.53,234.49,7.5456731]
[1731858157308,0.09367462,234.53,234.47,7.5456731]
[1731858157506,0.21916462,234.53,234.45,20.0]
[1731858157726,0.09367462,234.51,234.45,27.5456731]
[1731858158314,0.09367462,234.51,234.45,20.0]
[1731858158519,0.09367462,234.51,234.46,7.5456731]
[1731858158908,20.12549,234.59,234.46,7.5456731]
[1731858159113,24.027864,234.54,234.46,7.5456731]
[1731858159525,0.09367462,234.51,234.46,7.5456731]
[1731858159825,0.09367462,234.51,234.45,20.0]
[1731858159826,7.63934772,234.51,234.45,20.0]
[1731858161832,23.776884,234.5,234.44,15.0263]
[1731858162133,23.776884,234.5,234.45,20.0]
[1731858164515,7.5456731,234.47,234.39,33.75303564]
[1731858164731,7.5456731,234.47,234.38,29.36478127]
[1731858165235,23.776884,234.46,234.38,29.36478127]
[1731858165538,23.776884,234.46,234.38,16.2611]
[1731858166232,23.776884,234.46,234.39,7.5456731]
[1731858166438,23.776884,234.46,234.4,20.0]
[1731858169327,23.776884,234.46,234.39,20.0]
[1731858169717,23.776884,234.46,234.41,20.0]
[1731858171138,7.5456731,234.47,234.41,20.0]
[1731858172250,23.99604862,234.48,234.41,7.5456731]
[1731858175420,23.99604862,234.48,234.4,20.0]
[1731858175740,23.99604862,234.48,234.39,40.64935437]
[1731858176045,23.99604862,234.48,234.39,27.5456731]
[1731858176743,23.99604862,234.48,234.41,7.5456731]
[1731858178750,23.99604862,234.46,234.39,20.0]
[1731858179053,23.99604862,234.46,234.38,7.5456731]
[1731858183446,23.99604862,234.42,234.36,13.10368127]
[1731858183625,23.99604862,234.42,234.34,20.64935437]
[1731858183827,23.99604862,234.42,234.34,13.10368127]
[1731858183828,7.5456731,234.39,234.34,13.10368127]
[1731858184055,7.5456731,234.39,234.33,13.10368127]
[1731858184221,0.09367462,234.36,234.32,13.10368127]
[1731858184427,7.5456731,234.37,234.3,0.4809142]
[1731858184428,23.87055862,234.34,234.3,0.4809142]
[1731858185920,0.09367462,234.34,234.3,0.4809142]
[1731858186125,0.21916462,234.34,234.3,0.4809142]
[1731858186330,0.12549,234.35,234.3,0.4809142]
[1731858186331,23.99604862,234.32,234.3,0.4809142]
[1731858186549,0.21916462,234.31,234.3,0.4809142]
[1731858186852,24.12153862,234.31,234.3,0.4809142]
[1731858187642,31.66721172,234.31,234.3,0.4809142]
[1731858189928,6.4853,234.38,234.3,0.4809142]
[1731858190123,7.5456731,234.41,234.33,7.5456731]
[1731858190323,0.09367462,234.39,234.33,7.5456731]
[1731858190744,6.57877041,234.42,234.35,7.5456731]
[1731858190950,14.0309731,234.43,234.35,7.5456731]
[1731858191530,6.4853,234.43,234.37,7.5456731]
[1731858192353,16.0982,234.45,234.37,7.5456731]
[1731858192529,0.09367462,234.44,234.37,7.5456731]
[1731858192846,16.0982,234.45,234.37,7.5456731]
[1731858193351,15.7134,234.51,234.41,7.5456731]
[1731858193539,23.2590731,234.51,234.43,7.5456731]
[1731858194244,7.5456731,234.51,234.43,7.5456731]
[1731858194625,0.09367462,234.5,234.43,7.5456731]
[1731858194831,7.5456731,234.51,234.43,7.5456731]
[1731858195345,0.09367462,234.49,234.43,7.5456731]
[1731858197654,0.09367462,234.49,234.38,16.4126]
[1731858197851,23.776884,234.5,234.43,7.5456731]
[1731858198053,4.2626,234.6,234.49,7.5456731]
[1731858198267,0.09367462,234.56,234.49,7.5456731]
[1731858198941,7.5456731,234.57,234.49,7.5456731]
[1731858199454,0.09367462,234.55,234.49,7.5456731]
[1731858199654,0.21916462,234.55,234.47,7.5456731]
[1731858199951,0.09367462,234.51,234.45,7.5456731]
[1731858203058,0.09367462,234.51,234.38,22.8369]
[1731858203259,0.09367462,234.51,234.44,7.5456731]
[1731858203644,0.09367462,234.49,234.44,7.5456731]
[1731858203948,0.09367462,234.49,234.42,7.5456731]
[1731858204461,31.3225571,234.53,234.46,7.5456731]
[1731858204668,0.25098,234.52,234.46,7.5456731]
[1731858204957,0.09367462,234.51,234.46,7.5456731]
[1731858207247,0.09367462,234.51,234.39,20.0]
[1731858207450,7.5456731,234.56,234.47,7.5456731]
[1731858208368,7.5456731,234.56,234.49,7.5456731]
[1731858208860,6.57983612,234.59,234.52,7.5456731]
[1731858209040,7.5456731,234.6,234.52,7.5456731]
[1731858209236,7.5456731,234.6,234.42,20.0]
[1731858209454,0.09367462,234.57,234.5,7.5456731]
[1731858209842,0.09367462,234.57,234.48,7.5456731]
[1731858210047,24.12153862,234.57,234.48,7.5456731]
[1731858211843,23.87055862,234.55,234.46,7.5456731]
[1731858212364,7.63934772,234.55,234.46,7.5456731]
[1731858215240,0.09367462,234.53,234.41,16.0646]
[1731858215664,7.63934772,234.51,234.41,16.0646]
[1731858215960,23.776884,234.5,234.42,7.5456731]
[1731858216959,0.21916462,234.49,234.42,7.5456731]
[1731858218445,23.776884,234.5,234.44,7.5456731]
[1731858218652,23.776884,234.52,234.44,7.5456731]
[1731858218854,0.12549,234.51,234.44,7.5456731]
[1731858219060,0.09367462,234.5,234.44,7.5456731]
[1731858220448,23.776884,234.52,234.46,7.5456731]
[1731858220665,0.12549,234.54,234.46,7.5456731]
[1731858220888,0.09367462,234.53,234.46,7.5456731]
[1731858221263,0.21916462,234.53,234.46,7.5456731]
[1731858222971,23.99604862,234.53,234.46,7.5456731]
[1731858223269,23.99604862,234.51,234.44,7.5456731]
[1731858229070,23.99604862,234.49,234.36,45.9077924]
[1731858229374,23.99604862,234.49,234.42,7.5456731]
[1731858234686,23.99604862,234.49,234.36,15.7251]
[1731858234687,0.09367462,234.47,234.36,15.7251]
[1731858234859,0.21916462,234.45,234.4,7.5456731]
[1731858238261,0.09367462,234.43,234.36,15.7251]
[1731858238459,0.21916462,234.43,234.38,7.5456731]
[1731858242578,0.09367462,234.41,234.31,16.3146]
[1731858242757,0.21916462,234.41,234.35,7.5456731]
[1731858243782,4.265,234.47,234.39,7.5456731]
[1731858244073,4.2646,234.49,234.42,7.5456731]
[1731858244477,0.09367462,234.48,234.42,7.5456731]
[1731858245075,0.09367462,234.46,234.42,7.5456731]
[1731858247266,10.8782,234.57,234.44,7.5456731]
[1731858247471,10.8782,234.57,234.5,7.5456731]
[1731858248264,18.4238731,234.57,234.48,7.5456731]
[1731858248460,20.0,234.56,234.48,7.5456731]
[1731858249288,0.09367462,234.54,234.48,7.5456731]
[1731858250919,0.09367462,234.52,234.41,16.3146]
[1731858251069,0.09367462,234.52,234.47,7.5456731]
[1731858254792,0.09367462,234.5,234.45,7.5456731]
[1731858256384,0.09367462,234.5,234.47,7.5456731]
[1731858257187,0.09367462,234.5,234.45,7.5456731]
[1731858258194,0.09367462,234.5,234.43,7.5456731]
[1731858258976,0.12549,234.49,234.43,7.5456731]
[1731858259170,0.09367462,234.48,234.41,7.5456731]
[1731858260571,0.09367462,234.48,234.37,20.0]
[1731858260773,0.09367462,234.48,234.42,7.5456731]
[1731858261893,0.12549,234.47,234.42,7.5456731]
[1731858264482,0.12549,234.47,234.44,7.5456731]
[1731858264689,4.2633,234.56,234.46,7.5456731]
[1731858264874,20.0,234.56,234.48,7.5456731]
[1731858265075,20.0,234.56,234.5,7.5456731]
[1731858265289,10.8781,234.57,234.5,7.5456731]
[1731858265791,0.09367462,234.56,234.5,7.5456731]
[1731858265998,10.8781,234.57,234.5,7.5456731]
[1731858266174,0.09367462,234.56,234.48,7.5456731]
[1731858266492,23.776884,234.55,234.48,7.5456731]
[1731858274403,23.776884,234.55,234.39,20.0]
[1731858274701,23.776884,234.55,234.48,7.5456731]
[1731858276383,0.12549,234.54,234.48,7.5456731]
[1731858276884,20.0,234.59,234.52,7.5456731]
[1731858277702,0.09367462,234.59,234.52,7.5456731]
[1731858278284,24.12153862,234.59,234.52,7.5456731]
[1731858278686,35.92991172,234.59,234.52,7.5456731]
[1731858280995,35.92991172,234.59,234.5,7.5456731]
[1731858281198,6.1532,234.67,234.57,7.5456731]
[1731858281404,15.134,234.68,234.61,7.5456731]
[1731858281605,10.8501,234.72,234.63,7.5456731]
[1731858281903,6.5896,234.72,234.65,7.5456731]
[1731858282606,4.2602,234.73,234.65,7.5456731]
[1731858282904,7.5456731,234.73,234.65,7.5456731]
[1731858283292,0.09367462,234.72,234.65,7.5456731]
[1731858283803,0.09367462,234.73,234.65,7.5456731]
[1731858284009,4.35387462,234.73,234.65,7.5456731]
[1731858284303,0.09367462,234.71,234.65,7.5456731]
[1731858284502,0.21916462,234.71,234.65,7.5456731]
[1731858285985,23.99604862,234.71,234.65,7.5456731]
[1731858288009,0.21916462,234.68,234.55,15.0765]
[1731858288188,0.25098,234.67,234.55,15.0765]
[1731858288390,0.21916462,234.66,234.59,7.5456731]
[1731858289091,0.12549,234.65,234.59,7.5456731]
[1731858289290,0.21916462,234.64,234.59,7.5456731]
[1731858289599,23.776884,234.63,234.57,7.5456731]
[1731858290805,0.25098,234.66,234.62,7.5456731]
[1731858292812,0.09367462,234.65,234.62,7.5456731]
[1731858293003,0.09367462,234.65,234.6,7.5456731]
[1731858300617,0.1,234.8,234.64,7.5456731]
[1731858300806,6.62346104,234.84,234.55,15.0765]
[1731858300807,14.1836731,234.75,234.55,15.0765]
[1731858301002,0.09367462,234.72,234.64,7.5456731]
[1731858302008,0.09367462,234.7,234.64,7.5456731]
[1731858302339,0.21916462,234.7,234.64,7.5456731]
[1731858302626,23.776884,234.72,234.68,7.5456731]
[1731858302812,6.66572121,234.79,234.71,7.5456731]
[1731858303001,6.66572121,234.79,234.66,15.609]
[1731858303002,23.9127731,234.85,234.76,7.5456731]
[1731858303199,4.2578,234.86,234.76,7.5456731]
[1731858303422,10.91953952,234.86,234.78,7.5456731]
[1731858303825,6.66173952,234.86,234.84,7.5456731]
[1731858304119,4.2572,234.9,234.84,7.5456731]
[1731858304319,4.2572,234.9,234.84,11.74928855]
[1731858305109,24.027864,234.89,234.84,11.74928855]
[1731858305509,20.0,234.91,234.86,11.74928855]
[1731858305710,0.09367462,234.91,234.86,11.74928855]
[1731858306221,0.09367462,234.94,234.86,11.74928855]
[1731858306606,22.66724174,234.95,234.86,11.74928855]
[1731858306923,10.91795319,234.95,234.88,11.74928855]
[1731858307105,16.74928855,235.0,234.9,11.74928855]
[1731858307317,30.0,234.91,234.9,11.74928855]
[1731858308119,5.0,235.0,234.9,11.74928855]
[1731858308418,5.0,235.0,234.93,11.74928855]
[1731858308614,5.0,235.0,234.95,11.74928855]
[1731858310037,24.027864,234.99,234.93,11.74928855]
[1731858310239,0.09367462,234.96,234.9,15.609]
[1731858310440,0.12549,234.95,234.9,15.609]
[1731858310959,0.09367462,234.96,234.9,15.609]
[1731858311319,0.12549,234.95,234.9,15.609]
[1731858311928,0.21916462,234.96,234.9,15.609]
[1731858313923,23.776884,234.97,234.86,11.74928855]
[1731858313924,0.12549,234.93,234.86,11.74928855]
[1731858314322,0.25098,234.93,234.86,11.74928855]
[1731858314718,0.21916462,234.92,234.86,11.74928855]
[1731858315231,11.74928855,234.97,234.88,11.74928855]
[1731858315440,30.0,234.98,234.92,11.74928855]
[1731858316646,0.09367462,234.99,234.92,11.74928855]
[1731858317030,24.12153862,234.99,234.92,11.74928855]
[1731858320033,24.12153862,234.97,234.9,11.74928855]
[1731858320728,0.21916462,234.95,234.88,11.74928855]
[1731858320926,0.09367462,234.91,234.86,11.74928855]
[1731858321131,0.12549,234.9,234.84,27.53478855]
[1731858321752,0.12549,234.9,234.86,11.74928855]
[1731858322334,4.2561,234.96,234.84,15.7855]
[1731858322335,9.2554,235.0,234.88,11.74928855]
[1731858322648,24.12153862,234.94,234.86,11.74928855]
[1731858324542,0.34465462,234.88,234.77,15.2455]
[1731858324733,24.12153862,234.88,234.8,11.74928855]
[1731858325934,0.12549,234.88,234.82,11.74928855]
[1731858326149,11.87477855,234.96,234.87,11.74928855]
[1731858326450,0.09367462,234.95,234.87,11.74928855]
[1731858326626,0.21916462,234.93,234.85,11.74928855]
[1731858327527,4.47576462,234.93,234.85,11.74928855]
[1731858327731,4.47576462,234.93,234.83,11.74928855]
[1731858327732,24.12153862,234.91,234.83,11.74928855]
[1731858327951,24.12153862,234.89,234.81,11.74928855]
[1731858328355,24.12153862,234.89,234.83,11.74928855]
[1731858328555,0.12549,234.89,234.83,11.74928855]
[1731858328751,23.776884,234.91,234.83,11.74928855]
[1731858328752,0.25098,234.9,234.83,11.74928855]
[1731858329059,0.09367462,234.87,234.81,11.74928855]
[1731858329258,0.21916462,234.87,234.81,11.74928855]
[1731858329450,0.09367462,234.85,234.81,11.74928855]
[1731858329752,0.12549,234.82,234.79,11.74928855]
[1731858330433,0.34465462,234.83,234.79,11.74928855]
[1731858331657,4.2568,234.92,234.81,11.74928855]
[1731858331845,11.74928855,234.93,234.85,11.74928855]
[1731858332654,0.09367462,234.92,234.85,11.74928855]
[1731858333158,24.027864,234.92,234.85,11.74928855]
[1731858333347,0.09367462,234.91,234.85,11.74928855]
[1731858335355,0.09367462,234.89,234.83,11.74928855]
[1731858335749,0.09367462,234.89,234.72,33.47637346]
[1731858335935,0.09367462,234.87,234.8,11.74928855]
[1731858336142,0.12549,234.86,234.82,11.74928855]
[1731858339552,0.25098,234.86,234.82,11.74928855]
[1731858339759,0.25098,234.86,234.84,11.74928855]
[1731858339934,23.776884,234.88,234.84,11.74928855]
[1731858340254,0.12549,234.93,234.86,11.74928855]
[1731858341148,0.09367462,234.92,234.84,11.74928855]
[1731858341352,0.21916462,234.9,234.84,11.74928855]
[1731858341557,0.25098,234.89,234.84,11.74928855]
[1731858341768,0.12549,234.89,234.84,11.74928855]
[1731858343353,24.12153862,234.91,234.84,11.74928855]
[1731858344372,24.12153862,234.89,234.82,11.74928855]
[1731858346756,5.0,235.0,234.88,11.74928855]
[1731858346943,5.0,235.0,234.95,11.74928855]
[1731858347140,0.09367462,234.99,234.95,11.74928855]
[1731858347950,23.902374,234.99,234.95,11.74928855]
[1731858348268,0.12549,234.95,234.87,15.9826]
[1731858348452,0.12549,234.94,234.88,11.74928855]
[1731858350255,23.902374,234.95,234.9,11.74928855]
[1731858350560,5.0,235.0,234.94,11.74928855]
[1731858350757,5.0,235.0,234.98,11.74928855]
[1731858354570,5.0,235.0,234.98,11.74928855]
[1731858358473,5.0,235.0,234.96,11.74928855]
[1731858358968,5.0,235.0,234.92,15.6874]
[1731858359169,5.0,235.0,234.95,11.74928855]
[1731858359666,0.12549,234.99,234.95,11.74928855]
[1731858359851,23.902374,234.99,234.95,11.74928855]
[1731858360062,0.12549,234.99,234.95,11.74928855]
[1731858361465,0.12549,234.99,234.93,11.74928855]
[1731858361666,24.027864,234.99,234.93,11.74928855]
[1731858362369,24.027864,234.99,234.95,11.74928855]
[1731858364662,24.027864,234.99,234.93,11.74928855]
[1731858367870,44.12153862,234.92,234.78,15.6874]
[1731858368170,24.027864,234.95,234.87,11.74928855]
[1731858368480,0.12549,234.95,234.89,11.74928855]
[1731858369046,0.12549,234.95,234.78,15.6874]
[1731858369047,23.776884,234.96,234.91,11.74928855]
[1731858369250,6.3516,234.99,234.93,11.74928855]
[1731858370354,6.3516,234.99,234.92,7.51401979]
[1731858370565,5.0,235.0,234.95,7.51401979]
[1731858371869,0.12549,234.99,234.93,7.51401979]
[1731858372266,0.12549,234.99,234.93,11.73966746]
[1731858373471,24.027864,234.99,234.91,11.73966746]
[1731858373669,0.21916462,234.96,234.89,11.73966746]
[1731858373870,0.21916462,234.95,234.89,11.73966746]
[1731858374170,4.2555,234.99,234.85,11.73966746]
[1731858374171,0.12549,234.92,234.85,11.73966746]
[1731858374750,0.12549,234.92,234.82,15.9284]
[1731858374751,0.12549,234.92,234.87,11.73966746]
[1731858375171,23.776884,234.99,234.91,11.73966746]
[1731858375567,23.776884,234.97,234.89,11.73966746]
[1731858375951,0.09367462,234.96,234.89,11.73966746]
[1731858376354,0.34465462,234.96,234.89,11.73966746]
[1731858376979,23.776884,234.97,234.82,15.9284]
[1731858376980,0.34465462,234.92,234.85,11.73966746]
[1731858377478,0.34465462,234.9,234.83,11.73966746]
[1731858379074,0.12549,234.88,234.83,11.73966746]
[1731858379259,5.0,235.0,234.86,27.98016746]
[1731858379456,16.73966746,235.0,234.92,11.73966746]
[1731858379672,0.09367462,234.97,234.9,11.73966746]
[1731858380567,0.09367462,234.95,234.88,11.73966746]
[1731858380877,0.09367462,234.95,234.86,11.73966746]
[1731858381269,0.09367462,234.93,234.86,11.73966746]
[1731858381456,0.21916462,234.93,234.86,11.73966746]
[1731858381662,0.12549,234.9,234.88,11.73966746]
[1731858382877,23.776884,234.94,234.88,11.73966746]
[1731858383065,0.12549,234.94,234.9,11.73966746]
[1731858383380,0.12549,234.95,234.9,11.73966746]
[1731858383563,0.09367462,234.94,234.9,11.73966746]
[1731858384376,0.12549,234.93,234.88,11.73966746]
[1731858384885,0.12549,234.93,234.9,11.73966746]
[1731858385179,0.12549,234.94,234.92,11.73966746]
[1731858387692,16.73966746,235.0,234.92,11.73966746]
[1731858387862,23.902374,234.99,234.92,11.73966746]
[1731858388371,5.0,235.0,234.94,11.73966746]
[1731858388773,5.0,235.0,234.96,11.73966746]
[1731858390088,0.12549,234.99,234.96,11.73966746]
[1731858390258,5.0,235.0,234.98,11.73966746]
[1731858391190,5.0,235.0,234.96,28.25186746]
[1731858392568,5.0,235.0,234.94,11.73966746]
[1731858392770,5.0,235.0,234.96,11.73966746]
[1731858393294,5.0,235.0,234.98,11.73966746]
[1731858394287,5.0,235.0,234.98,7.51011055]
[1731858395183,5.0,235.0,234.9,15.7789]
[1731858395386,5.0,235.0,234.97,7.51011055]
[1731858395884,5.0,235.0,234.9,15.7789]
[1731858396088,5.0,235.0,234.98,7.51011055]
[1731858396278,5.0,235.0,234.96,7.51011055]
[1731858396679,5.0,235.0,234.9,15.7789]
[1731858396879,5.0,235.0,234.95,7.51011055]
[1731858397083,24.12153862,234.99,234.95,7.51011055]
[1731858398691,24.12153862,234.99,234.93,7.51011055]
[1731858402790,24.12153862,234.99,234.9,15.7789]
[1731858403101,35.88724917,234.99,234.84,30.0404422]
[1731858403288,24.12153862,234.99,234.94,7.51011055]
[1731858404595,5.0,235.0,234.96,7.51011055]
[1731858404898,5.0,235.0,234.98,7.51011055]
[1731858405879,5.0,235.0,234.96,7.51011055]
[1731858407089,5.0,235.0,234.98,7.51011055]
[1731858408679,5.0,235.0,234.95,6.4968]
[1731858408898,5.0,235.0,234.99,7.51011055]
[1731858411384,5.0,235.0,234.95,6.4968]
[1731858411587,5.0,235.0,234.98,7.51011055]
[1731858419707,5.0,235.0,234.96,30.1404422]
[1731858419897,5.0,235.0,234.99,7.51011055]
[1731858422107,5.0,235.0,234.97,7.51011055]
[1731858422494,5.0,235.0,234.94,0.1]
[1731858422700,5.0,235.0,234.99,7.51011055]
[1731858423000,5.0,235.0,234.93,15.8314]
[1731858423204,5.0,235.0,234.91,7.51011055]
[1731858423686,31.38066917,234.99,234.89,7.51011055]
[1731858427118,23.776884,234.97,234.9,7.51011055]
[1731858428693,7.51011055,234.96,234.88,7.51011055]
[1731858430997,7.51011055,234.95,234.88,7.51011055]
[1731858431398,0.12549,234.98,234.9,7.51011055]
[1731858431705,7.51011055,234.97,234.89,7.51011055]
[1731858431912,23.776884,234.99,234.91,7.51011055]
[1731858432211,7.51011055,234.99,234.91,7.51011055]
[1731858433211,5.0,235.0,234.93,7.51011055]
[1731858433694,7.51011055,234.99,234.91,7.51011055]
[1731858434609,23.776884,234.98,234.85,0.1]
[1731858434817,23.776884,234.98,234.9,7.51011055]
[1731858435303,23.776884,234.98,234.83,3.36081034]
[1731858435497,7.51011055,234.97,234.89,7.51011055]
[1731858438828,23.776884,234.96,234.89,7.51011055]
[1731858441209,23.776884,234.96,234.83,0.1]
[1731858441409,23.776884,234.96,234.89,7.51011055]
[1731858441608,7.51011055,234.97,234.89,7.51011055]
[1731858442502,23.99604862,234.96,234.89,7.51011055]
[1731858442809,23.99604862,234.94,234.86,7.51011055]
[1731858443215,31.50615917,234.94,234.82,16.3981]
[1731858443524,31.50615917,234.94,234.85,7.51011055]
[1731858444624,7.51011055,234.92,234.85,7.51011055]
[1731858446039,7.51011055,234.91,234.83,7.51011055]
[1731858446229,0.09367462,234.92,234.87,7.51011055]
[1731858446424,15.2806,234.95,234.9,7.51011055]
[1731858446811,15.2806,234.95,234.89,7.51011055]
[1731858452230,0.12549,234.99,234.91,7.51011055]
[1731858452539,23.902374,234.99,234.93,7.51011055]
[1731858453739,0.09367462,234.98,234.93,7.51011055]
[1731858456018,0.09367462,234.98,234.91,7.51011055]
[1731858458618,0.09367462,234.98,234.85,5.17064519]
[1731858458819,0.09367462,234.98,234.91,7.51011055]
[1731858459021,20.8756,235.0,234.95,7.51011055]
[1731858459022,5.0,235.0,234.95,7.51011055]
[1731858461433,5.0,235.0,234.89,15.5207]
[1731858461622,5.0,235.0,234.92,7.51011055]
[1731858464938,23.99604862,234.99,234.91,7.51011055]
[1731858466423,23.99604862,234.99,234.93,7.51011055]
[1731858467544,5.0,235.0,234.95,7.51011055]
[1731858468525,5.0,235.0,234.87,0.1]
[1731858468825,5.0,235.0,234.94,7.51011055]
[1731858469738,5.0,235.0,234.93,7.51011055]
[1731858472024,5.0,235.0,234.95,7.51011055]
[1731858472932,5.0,235.0,234.97,7.51011055]
[1731858473123,5.0,235.0,234.99,7.51011055]
[1731858475441,5.0,235.0,234.97,7.51011055]
[1731858476144,5.0,235.0,234.9,0.1]
[1731858476343,4.1978,235.0,234.94,7.51011055]
[1731858476549,4.1978,235.0,234.96,7.51011055]
[1731858477142,4.1978,235.0,234.9,0.1]
[1731858477143,4.1978,235.0,234.98,7.51011055]
[1731858479935,4.1978,235.0,234.99,7.51011055]
[1731858480151,4.1978,235.0,234.92,18.31329419]
[1731858480340,4.1978,235.0,234.97,7.51011055]
[1731858482536,4.1978,235.0,234.99,7.51011055]
[1731858487333,23.902374,235.1,235.03,155.6022]
[1731858487561,23.902374,235.1,235.03,7.51011055]
[1731858489752,31.41248455,235.1,235.03,7.51011055]
[1731858490460,31.41248455,235.1,235.01,7.51011055]
[1731858490658,23.902374,235.1,235.03,7.51011055]